fUSD/lending_fUSD_20240109
["ID","MTS","AMOUNT","RATE_DAILY","PERIOD"]
[310914432,1704814372888,-7028.61,0.00041835,30]
[310914433,1704814372898,-836.3,0.00041835,7]
[310914434,1704814372907,-500.0,0.00041835,30]
[310914435,1704814372917,-5593.4,0.00041835,30]
[310914436,1704814372926,-2579.3,0.00041835,30]
[310914437,1704814372936,-831.97,0.00041835,30]
[310914438,1704814372945,-500.0,0.00041835,30]
[310914439,1704814372954,-30439.38,0.00041835,30]
[310914440,1704814372963,-3381.6,0.00041835,30]
[310914441,1704814372973,-2158.92,0.00041835,30]
[310914442,1704814372983,-3472.05,0.00041835,30]
[310914443,1704814372993,-3977.49,0.00041835,30]
[310914444,1704814373002,-3410.32,0.00041835,30]
[310914445,1704814373012,-3128.49,0.00041835,30]
[310914446,1704814373023,-10635.21,0.00041835,30]
[310914447,1704814373035,-663.76,0.00041835,30]
[310914448,1704814373047,-24039.48,0.00041835,30]
[310914449,1704814373058,-500.0,0.00041835,30]
[310914450,1704814373067,-3985.89,0.00041835,30]
[310914451,1704814373075,-2042.98,0.00041835,30]
[310914452,1704814373085,-963.6,0.00041835,30]
[310914453,1704814373095,-666.14,0.00041835,30]
[310914454,1704814373104,-556.97,0.00041835,30]
[310914455,1704814373113,-8775.01,0.00041835,30]
[310914456,1704814373124,-500.0,0.00041835,30]
[310914457,1704814373133,-2400.49,0.00041835,30]
[310914458,1704814373143,-1309.81,0.00041835,30]
[310914459,1704814373153,-4562.41,0.00041835,30]
[310914460,1704814373163,-12849.89,0.00041835,30]
[310914461,1704814373173,-4825.39,0.00041835,30]
[310914462,1704814373183,-500.0,0.00041835,30]
[310914463,1704814373193,-566.11,0.00041835,30]
[310914464,1704814373202,-1467.66,0.00041835,30]
[310914465,1704814373212,-2107.23,0.00041835,30]
[310914466,1704814373222,-500.0,0.00041835,30]
[310914467,1704814373233,-11369.64,0.00041835,30]
[310914468,1704814373242,-1188.47,0.00041835,30]
[310914469,1704814373252,-2592.28,0.00041835,30]
[310914470,1704814373262,-566.95,0.00041835,30]
[310914471,1704814373273,-520.31,0.00041835,30]
[310914472,1704814373283,-500.0,0.00041835,30]
[310914473,1704814373294,-13217.82,0.00041835,30]
[310914474,1704814373305,-866.47,0.00041835,30]
[310914475,1704814373317,-3181.95,0.00041835,30]
[310914476,1704814373328,-1308.82,0.00041835,30]
[310914477,1704814373338,-1243.26,0.00041835,30]
[310914478,1704814373349,-500.0,0.00041835,30]
[310914479,1704814373360,-3734.08,0.00041835,30]
[310914480,1704814373371,-1766.64,0.00041835,30]
[310914481,1704814373381,-3615.8,0.00041835,30]
[310914482,1704814373392,-500.0,0.00041835,30]
[310914483,1704814373402,-799.0,0.00041835,30]
[310914484,1704814373413,-53505.47,0.00041835,30]
[310914485,1704814373424,-500.0,0.00041835,30]
[310914486,1704814373435,-500.0,0.00041835,30]
[310914487,1704814373449,-1413.08,0.00041835,30]
[310914488,1704814373460,-11287.22,0.00041835,30]
[310914489,1704814373470,-1155.76,0.00041835,30]
[310914490,1704814373480,-3747.83,0.00041835,30]
[310914491,1704814373490,-1079.77,0.00041835,30]
[310914492,1704814373501,-1909.74,0.00041835,30]
[310914493,1704814373511,-3376.04,0.00041835,30]
[310914494,1704814373522,-500.0,0.00041835,30]
[310914495,1704814373531,-1333.09,0.00041835,30]
[310914496,1704814373541,-500.0,0.00041835,30]
[310914497,1704814373551,-9749.45,0.00041835,30]
[310914498,1704814373563,-539.77,0.00041835,30]
[310914499,1704814373574,-2218.8,0.00041835,30]
[310914500,1704814373584,-1480.74,0.00041835,30]
[310914501,1704814373594,-7804.99,0.00041835,30]
[310914502,1704814373604,-1670.61,0.00041835,30]
[310914503,1704814373615,-4741.82,0.00041835,30]
[310914504,1704814373625,-1839.15,0.00041835,30]
[310914505,1704814373635,-866.78,0.00041835,30]
[310914506,1704814373646,-1070.69,0.00041835,30]
[310914507,1704814373655,-1274.54,0.00041835,30]
[310914508,1704814373666,-744.76,0.00041835,30]
[310914509,1704814373675,-2037.9,0.00041835,30]
[310914510,1704814373685,-1352.73,0.00041835,30]
[310914511,1704814373695,-191.17869797,0.00041835,30]
[310914512,1704814373705,-6743.41,0.00041835,30]
[310914513,1704814373715,-1978.49,0.00041835,30]
[310914514,1704814373727,-6850.2,0.00041835,30]
[310914515,1704814373737,-621.39,0.00041835,30]
[310914516,1704814373747,-500.0,0.00041835,30]
[310914517,1704814373757,-3055.23,0.00041835,30]
[310914518,1704814373768,-2655.54,0.00041835,30]
[310914519,1704814373778,-764.5,0.00041835,30]
[310914520,1704814373788,-8868.04,0.00041835,30]
[310914521,1704814373797,-770.69,0.00041835,30]
[310914522,1704814373807,-4116.15,0.00041835,30]
[310914523,1704814373819,-6036.32,0.00041835,30]
[310914524,1704814373833,-5775.13,0.00041835,30]
[310914525,1704814373845,-3806.3,0.00041835,30]
[310914526,1704814373856,-1289.28,0.00041835,30]
[310914527,1704814373866,-500.0,0.00041835,30]
[310914528,1704814373876,-6309.52,0.00041835,30]
[310914529,1704814373887,-845.03,0.00041835,30]
[310914530,1704814373897,-1090.32,0.00041835,30]
[310914531,1704814373906,-5575.14,0.00041835,30]
[310914532,1704814373916,-3727.78,0.00041835,30]
[310914533,1704814373928,-901.26,0.00041835,30]
[310914534,1704814373937,-529.51,0.00041835,30]
[310914535,1704814373946,-10643.6,0.00041835,30]
[310914536,1704814373957,-515.54748984,0.00041835,30]
[310914537,1704814373968,-4214.2,0.00041835,30]
[310914538,1704814373978,-500.0,0.00041835,30]
[310914539,1704814373988,-3567.97,0.00041835,30]
[310914540,1704814373998,-500.0,0.00041835,30]
[310914541,1704814374008,-2289.51,0.00041835,30]
[310914542,1704814374018,-4092.41,0.00041835,30]
[310914543,1704814374029,-4952.19,0.00041835,30]
[310914544,1704814374038,-546.11,0.00041835,30]
[310914545,1704814374048,-1000.5,0.00041835,30]
[310914546,1704814374057,-25536.63,0.00041835,30]
[310914547,1704814374068,-2584.46,0.00041835,30]
[310914548,1704814374078,-500.0,0.00041835,30]
[310914549,1704814374088,-6469.48,0.00041835,30]
[310914550,1704814374213,-1883.51,0.00041835,30]
[310914551,1704814374224,-14086.33,0.00041835,30]
[310914552,1704814374234,-17610.03,0.00041835,30]
[310914553,1704814374244,-2218.2,0.00041835,30]
[310914554,1704814374254,-1520.43,0.00041835,30]
[310914555,1704814374264,-2301.6,0.00041835,30]
[310914556,1704814374274,-3584.84,0.00041835,30]
[310914557,1704814374283,-12370.47,0.00041835,30]
[310914558,1704814374293,-82269.16,0.00041835,30]
[310914559,1704814374303,-587.12,0.00041835,30]
[310914560,1704814374312,-500.0,0.00041835,30]
[310914561,1704814374323,-2651.08,0.00041835,30]
[310914562,1704814374333,-811.16,0.00041835,30]
[310914563,1704814374344,-500.0,0.00041835,30]
[310914564,1704814374354,-8660.7,0.00041835,30]
[310914565,1704814374365,-7898.64,0.00041835,30]
[310914566,1704814374374,-500.0,0.00041835,30]
[310914567,1704814374385,-1178.68,0.00041835,30]
[310914568,1704814374394,-6405.08,0.00041835,30]
[310914569,1704814374403,-6245.69,0.00041835,30]
[310914570,1704814374413,-3770.14,0.00041835,30]
[310914571,1704814374422,-500.0,0.00041835,30]
[310914572,1704814374431,-2108.08,0.00041835,30]
[310914573,1704814374446,-1033.39,0.00041835,30]
[310914574,1704814374456,-1235.98,0.00041835,30]
[310914575,1704814374465,-4003.81,0.00041835,30]
[310914576,1704814374474,-3248.4,0.00041835,30]
[310914577,1704814374483,-500.0,0.00041835,30]
[310914578,1704814374493,-500.0,0.00041835,30]
[310914579,1704814374502,-923.06,0.00041835,30]
[310914580,1704814374511,-500.0,0.00041835,30]
[310914581,1704814374521,-1028.56,0.00041835,30]
[310914582,1704814374530,-818.97,0.00041835,30]
[310914583,1704814374540,-3938.01,0.00041835,30]
[310914584,1704814374549,-500.0,0.00041835,30]
[310914585,1704814374558,-936.13,0.00041835,30]
[310914586,1704814374567,-5593.35,0.00041835,30]
[310914587,1704814374576,-500.0,0.00041835,30]
[310914588,1704814374585,-1000.0,0.00041835,30]
[310914589,1704814374594,-452.71746661,0.00041835,30]
[310914590,1704814374604,-852.7,0.00041835,30]
[310914591,1704814374613,-756.79,0.00041835,30]
[310914592,1704814374624,-603.71616128,0.00041835,30]
[310914593,1704814374633,-8750.0,0.00041875,2]
[310914594,1704814374642,-1723.14,0.00041875,2]
[310914595,1704814374652,-3005.0,0.0004189,3]
[310914596,1704814374661,-333.33333,0.00041898,8]
[310914597,1704814374670,-500.0,0.00041917,30]
[310914598,1704814374679,-1349.16,0.00041917,30]
[310914599,1704814374689,-500.0,0.00041917,30]
[310914600,1704814374698,-1655.21,0.00041917,30]
[310914601,1704814374707,-717.53,0.00041917,30]
[310914602,1704814374716,-684.27,0.00041917,30]
[310914603,1704814374725,-500.0,0.00041917,30]
[310914604,1704814374734,-878.82,0.00041917,30]
[310914605,1704814374743,-500.0,0.00041917,30]
[310914606,1704814374752,-1062.3,0.00041917,30]
[310914607,1704814374762,-505.38,0.00041917,30]
[310914608,1704814374771,-500.0,0.00041917,30]
[310914609,1704814374780,-500.0,0.00041917,30]
[310914610,1704814374789,-701.66,0.00041917,30]
[310914611,1704814374798,-1067.49,0.00041917,30]
[310914612,1704814374807,-476.33043262,0.00041917,30]
[310914613,1704814374816,-500.0,0.00041917,30]
[310914614,1704814374829,-565.87,0.00041917,30]
[310914615,1704814374839,-500.0,0.00041917,30]
[310914616,1704814374848,-500.0,0.00041917,30]
[310914617,1704814374859,-500.0,0.00041917,30]
[310914618,1704814374870,-707.34,0.00041917,30]
[310914619,1704814374880,-676.09,0.00041917,30]
[310914620,1704814374889,-581.02,0.00041917,30]
[310914621,1704814374898,-1072.03,0.00041917,30]
[310914622,1704814374907,-712.95,0.00041917,30]
[310914623,1704814374916,-169.23042087,0.00041917,30]
[310914624,1704814374925,-2060.33,0.00041917,30]
[310914625,1704814374935,-500.0,0.00041917,30]
[310914626,1704814374944,-500.0,0.00041917,30]
[310914627,1704814374954,-569.49,0.00041917,30]
[310914628,1704814374963,-500.0,0.00041917,30]
[310914629,1704814374972,-319.93956612,0.00041917,30]
[310914630,1704814374981,-500.0,0.00041917,30]
[310914631,1704814374990,-611.31,0.00041917,30]
[310914632,1704814375000,-500.0,0.00041917,30]
[310914633,1704814375010,-500.0,0.00041917,30]
[310914634,1704814375020,-500.0,0.00041917,30]
[310914635,1704814375029,-500.0,0.00041917,30]
[310914636,1704814375039,-500.0,0.00041917,30]
[310914637,1704814375048,-500.0,0.00041917,30]
[310914638,1704814375058,-569.87,0.00041917,2]
[310914639,1704814375068,-500.0,0.00041917,30]
[310914640,1704814375077,-500.0,0.00041917,30]
[310914641,1704814375086,-1090.72,0.00041917,30]
[310914642,1704814375096,-808.52,0.00041917,30]
[310914643,1704814375106,-500.0,0.00041917,30]
[310914644,1704814375116,-500.0,0.00041917,30]
[310914645,1704814375125,-637.03495217,0.00041917,30]
[310914646,1704814375135,-500.0,0.00041917,30]
[310914647,1704814375145,-1089.41,0.00041917,30]
[310914648,1704814375155,-675.87,0.00041917,30]
[310914649,1704814375165,-978.4,0.00041917,30]
[310914650,1704814375174,-500.0,0.00041917,30]
[310914651,1704814375183,-500.0,0.00041917,30]
[310914652,1704814375193,-500.0,0.00041917,30]
[310914653,1704814375203,-943.45,0.00041917,30]
[310914654,1704814375213,-500.0,0.00041917,30]
[310914655,1704814375223,-1046.91,0.00041917,30]
[310914656,1704814375233,-500.0,0.00041917,30]
[310914657,1704814375243,-500.0,0.00041917,30]
[310914658,1704814375253,-500.0,0.00041917,30]
[310914659,1704814375263,-989.32,0.00041917,30]
[310914660,1704814375273,-523.36,0.00041917,30]
[310914661,1704814375282,-735.81,0.00041917,30]
[310914662,1704814375292,-500.0,0.00041917,30]
[310914663,1704814375302,-500.0,0.00041917,30]
[310914664,1704814375312,-805.93,0.00041917,30]
[310914665,1704814375321,-500.0,0.00041917,7]
[310914666,1704814375331,-500.0,0.00041917,30]
[310914667,1704814375341,-1029.87,0.00041917,30]
[310914668,1704814375351,-500.0,0.00041917,30]
[310914669,1704814375360,-500.0,0.00041917,30]
[310914670,1704814375370,-500.0,0.00041917,30]
[310914671,1704814375380,-858.42,0.00041917,30]
[310914672,1704814375390,-985.14,0.00041917,30]
[310914673,1704814375400,-250.0,0.00041917,30]
[310914674,1704814375411,-887.41,0.00041917,30]
[310914675,1704814375421,-586.06,0.00041917,30]
[310914676,1704814375430,-242.95655183,0.00041917,30]
[310914677,1704814375440,-500.0,0.00041917,30]
[310914678,1704814375450,-542.26,0.00041917,30]
[310914679,1704814375459,-924.59,0.00041917,30]
[310914680,1704814375469,-500.0,0.00041917,30]
[310914681,1704814375479,-500.0,0.00041917,30]
[310914682,1704814375489,-1031.16,0.00041917,30]
[310914683,1704814375499,-500.0,0.00041917,30]
[310914684,1704814375509,-639.05,0.00041917,30]
[310914685,1704814375519,-651.17,0.00041917,6]
[310914686,1704814375529,-630.96,0.00041917,30]
[310914687,1704814375540,-808.61,0.00041917,30]
[310914688,1704814375551,-772.64,0.00041917,30]
[310914689,1704814375561,-309.67400122,0.00041917,30]
[310914690,1704814375571,-768.03,0.00041917,30]
[310914691,1704814375581,-1151.39,0.00041917,30]
[310914692,1704814375591,-500.0,0.00041917,30]
[310914693,1704814375602,-500.0,0.00041917,30]
[310914694,1704814375612,-500.0,0.00041917,30]
[310914695,1704814375622,-500.0,0.00041917,30]
[310914696,1704814375632,-594.48,0.00041917,30]
[310914697,1704814375642,-1345.27,0.00041917,30]
[310914698,1704814375652,-504.9,0.00041917,30]
[310914699,1704814375662,-530.22,0.00041917,30]
[310914700,1704814375672,-500.0,0.00041917,30]
[310914701,1704814375682,-898.15,0.00041917,30]
[310914702,1704814375693,-1000.0,0.00041917,2]
[310914703,1704814375704,-827.59,0.00041917,30]
[310914704,1704814375715,-1088.78,0.00041917,30]
[310914705,1704814375725,-291.3217652,0.00041917,30]
[310914706,1704814375735,-1220.08,0.00041917,30]
[310914707,1704814375745,-965.85,0.00041917,30]
[310914708,1704814375756,-1200.92,0.00041917,30]
[310914709,1704814375766,-677.14,0.00041917,30]
[310914710,1704814375776,-500.0,0.00041917,30]
[310914711,1704814375787,-500.0,0.00041917,30]
[310914712,1704814375798,-615.95,0.00041917,30]
[310914713,1704814375808,-500.0,0.00041917,30]
[310914714,1704814375820,-906.91,0.00041917,30]
[310914715,1704814375832,-500.0,0.00041917,30]
[310914716,1704814375842,-500.0,0.00041917,30]
[310914717,1704814375853,-199.30685389,0.00041917,30]
[310914718,1704814375863,-1003.46,0.00041917,30]
[310914719,1704814375874,-500.0,0.00041917,30]
[310914720,1704814375884,-805.99,0.00041917,30]
[310914721,1704814375894,-500.0,0.00041917,30]
[310914722,1704814375905,-500.0,0.00041917,30]
[310914723,1704814375916,-920.79,0.00041917,30]
[310914724,1704814375927,-983.43,0.00041917,30]
[310914725,1704814375938,-628.8,0.00041917,30]
[310914726,1704814375948,-500.0,0.00041917,30]
[310914727,1704814375959,-500.0,0.00041917,30]
[310914728,1704814375969,-500.0,0.00041917,30]
[310914729,1704814375980,-544.66,0.00041917,30]
[310914730,1704814375990,-500.0,0.00041917,30]
[310914731,1704814376001,-500.0,0.00041917,30]
[310914732,1704814376013,-1232.09,0.00041917,30]
[310914733,1704814376024,-500.0,0.00041917,30]
[310914734,1704814376034,-832.26,0.00041917,30]
[310914735,1704814376045,-500.0,0.00041917,7]
[310914736,1704814376055,-941.95,0.00041917,30]
[310914737,1704814376066,-500.0,0.00041917,30]
[310914738,1704814376077,-500.0,0.00041917,30]
[310914739,1704814376088,-809.62,0.00041917,30]
[310914740,1704814376098,-612.02508979,0.00041917,30]
[310914741,1704814376118,-1379.83,0.00041917,30]
[310914742,1704814376139,-500.0,0.00041917,30]
[310914743,1704814376156,-844.05,0.00041917,30]
[310914744,1704814376177,-851.49,0.00041917,30]
[310914745,1704814376194,-562.95,0.00041917,30]
[310914746,1704814376212,-1162.12,0.00041917,30]
[310914747,1704814376232,-872.21,0.00041917,30]
[310914748,1704814376250,-500.0,0.00041917,30]
[310914749,1704814376269,-706.17,0.00041917,30]
[310914750,1704814376287,-980.88,0.00041917,30]
[310914751,1704814376308,-730.77,0.00041917,30]
[310914752,1704814376323,-500.0,0.00041917,30]
[310914753,1704814376339,-500.0,0.00041917,30]
[310914754,1704814376358,-635.39,0.00041917,30]
[310914755,1704814376372,-500.0,0.00041917,30]
[310914756,1704814376395,-921.8,0.00041917,30]
[310914757,1704814376410,-500.0,0.00041917,30]
[310914758,1704814376425,-1001.03,0.00041917,30]
[310914759,1704814376441,-2820.32,0.00041917,30]
[310914760,1704814376458,-500.0,0.00041917,30]
[310914761,1704814376475,-878.02,0.00041917,30]
[310914762,1704814376490,-2535.74,0.00041917,30]
[310914763,1704814376505,-613.33,0.00041917,30]
[310914764,1704814376520,-500.0,0.00041917,30]
[310914765,1704814376534,-1197.1,0.00041917,30]
[310914766,1704814376551,-500.0,0.00041917,30]
[310914767,1704814376568,-703.38,0.00041917,30]
[310914768,1704814376583,-512.2135347,0.00041917,30]
[310914769,1704814376598,-471.96509719,0.00041917,30]
[310914770,1704814376613,-500.0,0.00041917,30]
[310914771,1704814376628,-500.0,0.00041917,30]
[310914772,1704814376642,-1209.27,0.00041917,30]
[310914773,1704814376659,-3470.75,0.00041917,30]
[310914774,1704814376675,-736.81,0.00041917,30]
[310914775,1704814376691,-500.0,0.00041917,30]
[310914776,1704814376706,-500.0,0.00041917,30]
[310914777,1704814376721,-500.0,0.00041917,30]
[310914778,1704814376736,-832.75,0.00041917,30]
[310914779,1704814376751,-1686.91,0.00041917,30]
[310914780,1704814376766,-2537.38,0.00041917,30]
[310914781,1704814376782,-2682.01,0.00041917,30]
[310914782,1704814376799,-1565.58,0.00041917,30]
[310914783,1704814376815,-740.27,0.00041917,30]
[310914784,1704814376832,-501.25,0.00041917,30]
[310914785,1704814376848,-600.36,0.00041917,30]
[310914786,1704814376863,-500.0,0.00041917,30]
[310914787,1704814376880,-1224.61,0.00041917,30]
[310914788,1704814376895,-2236.0,0.00041917,30]
[310914789,1704814376911,-2897.3,0.00041917,30]
[310914790,1704814376927,-1928.1,0.00041917,30]
[310914791,1704814376944,-1993.87,0.00041917,30]
[310914792,1704814376959,-576.08,0.00041917,30]
[310914793,1704814376975,-500.0,0.00041917,30]
[310914794,1704814376991,-556.49,0.00041917,30]
[310914795,1704814377008,-624.68,0.00041917,30]
[310914796,1704814377022,-2377.69,0.00041917,30]
[310914797,1704814377037,-770.16,0.00041917,30]
[310914798,1704814377051,-1122.24,0.00041917,30]
[310914799,1704814377067,-500.0,0.00041917,30]
[310914800,1704814377081,-500.0,0.00041917,30]
[310914801,1704814377096,-500.0,0.00041917,30]
[310914802,1704814377111,-2275.75,0.00041917,30]
[310914803,1704814377127,-2702.81,0.00041917,30]
[310914804,1704814377142,-500.0,0.00041917,30]
[310914805,1704814377157,-1074.62,0.00041917,30]
[310914806,1704814377171,-500.0,0.00041917,30]
[310914807,1704814377185,-2309.85,0.00041917,30]
[310914808,1704814377199,-787.86,0.00041917,30]
[310914809,1704814377213,-3474.73,0.00041917,30]
[310914810,1704814377228,-2283.1,0.00041917,30]
[310914811,1704814377244,-500.0,0.00041917,30]
[310914812,1704814377260,-1596.69,0.00041917,30]
[310914813,1704814377275,-1645.78,0.00041917,30]
[310914814,1704814377289,-1113.3,0.00041917,30]
[310914815,1704814377304,-1309.33,0.00041917,30]
[310914816,1704814377319,-1314.94,0.00041917,30]
[310914817,1704814377335,-500.0,0.00041917,30]
[310914818,1704814377349,-1968.01,0.00041917,30]
[310914819,1704814377364,-1096.11,0.00041917,30]
[310914820,1704814377378,-1246.22,0.00041917,30]
[310914821,1704814377393,-721.49,0.00041917,30]
[310914822,1704814377407,-544.47,0.00041917,30]
[310914823,1704814377422,-2589.92,0.00041917,30]
[310914824,1704814377437,-1433.82,0.00041917,30]
[310914825,1704814377453,-500.0,0.00041917,30]
[310914826,1704814377468,-500.0,0.00041917,30]
[310914827,1704814377484,-1499.73,0.00041917,30]
[310914828,1704814377500,-500.0,0.00041917,30]
[310914829,1704814377515,-1138.55,0.00041917,30]
[310914830,1704814377530,-2193.46,0.00041917,30]
[310914831,1704814377544,-1703.93,0.00041917,30]
[310914832,1704814377561,-500.0,0.00041917,30]
[310914833,1704814377575,-1188.38,0.00041917,30]
[310914834,1704814377591,-1590.0,0.00041917,30]
[310914835,1704814377609,-500.0,0.00041917,30]
[310914836,1704814377627,-987.73,0.00041917,30]
[310914837,1704814377644,-520.23,0.00041917,30]
[310914838,1704814377661,-1982.92,0.00041917,30]
[310914839,1704814377678,-523.39,0.00041917,30]
[310914840,1704814377694,-562.23,0.00041917,30]
[310914841,1704814377711,-641.09,0.00041917,30]
[310914842,1704814377732,-931.93,0.00041917,30]
[310914843,1704814377751,-552.3,0.00041917,30]
[310914844,1704814377768,-1038.62,0.00041917,30]
[310914845,1704814377786,-1121.37,0.00041917,30]
[310914846,1704814377804,-3941.88,0.00041917,30]
[310914847,1704814377821,-1704.41,0.00041917,30]
[310914848,1704814377840,-1031.35,0.00041917,30]
[310914849,1704814377857,-600.61,0.00041917,30]
[310914850,1704814377879,-672.4,0.00041917,30]
[310914851,1704814377896,-1793.95,0.00041917,30]
[310914852,1704814377914,-830.11,0.00041917,30]
[310914853,1704814377933,-626.73,0.00041917,30]
[310914854,1704814377951,-1939.09,0.00041917,30]
[310914855,1704814377968,-500.0,0.00041917,30]
[310914856,1704814377986,-1992.23,0.00041917,30]
[310914857,1704814378004,-1672.06,0.00041917,30]
[310914858,1704814378022,-500.0,0.00041917,30]
[310914859,1704814378041,-1049.82,0.00041917,30]
[310914860,1704814378059,-500.0,0.00041917,30]
[310914861,1704814378077,-832.6,0.00041917,30]
[310914862,1704814378093,-592.07,0.00041917,30]
[310914863,1704814378110,-1154.73,0.00041917,30]
[310914864,1704814378131,-617.46,0.00041917,30]
[310914865,1704814378147,-500.0,0.00041917,30]
[310914866,1704814378164,-2019.49,0.00041917,30]
[310914867,1704814378180,-500.0,0.00041917,30]
[310914868,1704814378197,-623.61,0.00041917,30]
[310914869,1704814378212,-1575.33,0.00041917,30]
[310914870,1704814378230,-500.0,0.00041917,30]
[310914871,1704814378245,-500.0,0.00041917,30]
[310914872,1704814378261,-1208.87,0.00041917,30]
[310914873,1704814378275,-589.72,0.00041917,30]
[310914874,1704814378291,-177.13578494,0.00041917,30]
[310914875,1704814378306,-1100.7,0.00041917,30]
[310914876,1704814378321,-500.0,0.00041917,30]
[310914877,1704814378337,-574.55,0.00041917,30]
[310914878,1704814378352,-1443.2,0.00041917,30]
[310914879,1704814378368,-1118.67,0.00041917,30]
[310914880,1704814378383,-500.0,0.00041917,30]
[310914881,1704814378399,-1567.43,0.00041917,30]
[310914882,1704814378414,-500.0,0.00041917,30]
[310914883,1704814378429,-538.72,0.00041917,30]
[310914884,1704814378444,-500.0,0.00041917,30]
[310914885,1704814378460,-615.94,0.00041917,30]
[310914886,1704814378475,-500.0,0.00041917,30]
[310914887,1704814378489,-1835.01,0.00041917,30]
[310914888,1704814378504,-500.0,0.00041917,30]
[310914889,1704814378520,-835.4,0.00041917,30]
[310914890,1704814378535,-500.0,0.00041917,30]
[310914891,1704814378550,-500.0,0.00041917,30]
[310914892,1704814378565,-586.51126215,0.00041917,30]
[310914893,1704814378579,-2298.01,0.00041917,30]
[310914894,1704814378594,-500.0,0.00041917,30]
[310914895,1704814378609,-870.0,0.00041917,30]
[310914896,1704814378625,-539.47,0.00041917,30]
[310914897,1704814378640,-1310.11,0.00041917,30]
[310914898,1704814378655,-1150.5,0.00041917,30]
[310914899,1704814378677,-500.0,0.00041917,30]
[310914900,1704814378693,-500.0,0.00041917,30]
[310914901,1704814378707,-1400.49,0.00041917,30]
[310914902,1704814378722,-500.0,0.00041917,30]
[310914903,1704814378738,-1360.64,0.00041917,30]
[310914904,1704814378755,-1204.31,0.00041917,30]
[310914905,1704814378771,-923.19,0.00041917,30]
[310914906,1704814378788,-771.54,0.00041917,30]
[310914907,1704814378805,-2584.55,0.00041917,30]
[310914908,1704814378821,-1160.23,0.00041917,30]
[310914909,1704814378837,-1315.98,0.00041917,30]
[310914910,1704814378854,-500.0,0.00041917,10]
[310914911,1704814378872,-1972.08,0.00041917,30]
[310914912,1704814378888,-1668.26,0.00041917,30]
[310914913,1704814378904,-1439.0,0.00041917,30]
[310914914,1704814378919,-1429.35,0.00041917,30]
[310914915,1704814378937,-946.78,0.00041917,30]
[310914916,1704814378953,-2461.03,0.00041917,30]
[310914917,1704814378969,-713.51,0.00041917,30]
[310914918,1704814378985,-500.0,0.00041917,4]
[310914919,1704814378999,-1659.56,0.00041917,30]
[310914920,1704814379016,-500.0,0.00041917,30]
[310914921,1704814379031,-500.0,0.00041917,30]
[310914922,1704814379046,-500.0,0.00041917,30]
[310914923,1704814379062,-803.78,0.00041917,30]
[310914924,1704814379076,-500.0,0.00041917,30]
[310914925,1704814379092,-614.42,0.00041917,30]
[310914926,1704814379535,-500.0,0.00041917,30]
[310914927,1704814379560,-800.95,0.00041917,30]
[310914928,1704814379570,-1758.64,0.00041917,30]
[310914929,1704814379579,-500.0,0.00041917,30]
[310914930,1704814379589,-1778.42,0.00041917,30]
[310914931,1704814379599,-848.11,0.00041917,30]